[Event "Late-Titled-Tuesday-Blitz-February-06-2024"]
[Site "Chess.com"]
[Date "2024.02.06"]
[Round "4"]
[White "chrisclaireredfield"]
[Black "alexrustemov"]
[Result "1-0"]
[WhiteElo "2577"]
[BlackElo "2775"]
[TimeControl "180+1"]
[EndTime "14:38:44 PST"]
[Termination "chrisclaireredfield won by checkmate"]

1. Nf3 {[%clk 0:03:00.9]} 1... d5 {[%clk 0:02:59.2]} 2. g3 {[%clk 0:03:01.1]}
2... c6 {[%clk 0:02:59.6]} 3. Bg2 {[%clk 0:03:01.5]} 3... Bf5 {[%clk 0:03:00.2]}
4. O-O {[%clk 0:03:01.1]} 4... e6 {[%clk 0:03:00.7]} 5. d3 {[%clk 0:03:01]} 5...
Nf6 {[%clk 0:03:00.1]} 6. Nh4 {[%clk 0:02:58]} 6... Bg6 {[%clk 0:02:58.3]} 7.
Nxg6 {[%clk 0:02:56.8]} 7... hxg6 {[%clk 0:02:59.2]} 8. e4 {[%clk 0:02:57]} 8...
Be7 {[%clk 0:02:55.8]} 9. Nc3 {[%clk 0:02:56.4]} 9... O-O {[%clk 0:02:55.4]} 10.
f4 {[%clk 0:02:45.7]} 10... c5 {[%clk 0:02:41.2]} 11. e5 {[%clk 0:02:38.3]}
11... Nfd7 {[%clk 0:02:37.5]} 12. h4 {[%clk 0:02:38.2]} 12... Nc6 {[%clk
0:02:34.9]} 13. h5 {[%clk 0:02:36.2]} 13... gxh5 {[%clk 0:02:33.7]} 14. Qxh5
{[%clk 0:02:35.9]} 14... g6 {[%clk 0:02:32.7]} 15. Qg4 {[%clk 0:02:23.4]} 15...
Nd4 {[%clk 0:02:25.2]} 16. Rf2 {[%clk 0:02:23.4]} 16... Kg7 {[%clk 0:02:22.2]}
17. Nd1 {[%clk 0:02:15.9]} 17... Rh8 {[%clk 0:02:21.3]} 18. Ne3 {[%clk
0:02:11.9]} 18... Qg8 {[%clk 0:02:11.2]} 19. c3 {[%clk 0:02:10]} 19... Nf5
{[%clk 0:02:03.2]} 20. Nxf5+ {[%clk 0:02:04.4]} 20... exf5 {[%clk 0:02:04]} 21.
Qf3 {[%clk 0:01:50.5]} 21... Nb6 {[%clk 0:02:03.7]} 22. Re2 {[%clk 0:01:40.3]}
22... Rd8 {[%clk 0:02:01.5]} 23. Bd2 {[%clk 0:01:38.2]} 23... Na8 {[%clk
0:01:59.1]} 24. Kf2 {[%clk 0:01:37]} 24... Nc7 {[%clk 0:01:58.3]} 25. Rh1 {[%clk
0:01:26.2]} 25... Ne6 {[%clk 0:01:57.3]} 26. Ree1 {[%clk 0:01:24.9]} 26... b6
{[%clk 0:01:46.9]} 27. Rxh8 {[%clk 0:01:24.6]} 27... Qxh8 {[%clk 0:01:47]} 28.
Rh1 {[%clk 0:01:24.8]} 28... Qe8 {[%clk 0:01:45.4]} 29. g4 {[%clk 0:01:24.7]}
29... f6 {[%clk 0:01:22.5]} 30. Qh3 {[%clk 0:01:13]} 30... Qg8 {[%clk
0:01:03.4]} 31. gxf5 {[%clk 0:01:08.7]} 31... gxf5 {[%clk 0:01:04.3]} 32. Qxf5
{[%clk 0:01:00.8]} 32... Kf7 {[%clk 0:00:57.1]} 33. Rh7+ {[%clk 0:00:47.1]}
33... Ng7 {[%clk 0:00:56.7]} 34. e6+ {[%clk 0:00:39.7]} 34... Kf8 {[%clk
0:00:53.1]} 35. Qh3 {[%clk 0:00:28.1]} 35... f5 {[%clk 0:00:51.5]} 36. Qh6
{[%clk 0:00:23.7]} 36... Rd6 {[%clk 0:00:47.7]} 37. Rh8 {[%clk 0:00:23.6]} 37...
Bd8 {[%clk 0:00:21.5]} 38. Rxg8+ {[%clk 0:00:21]} 38... Kxg8 {[%clk 0:00:22.4]}
39. Qg6 {[%clk 0:00:20.4]} 39... Kf8 {[%clk 0:00:21.5]} 40. Qf7# {[%clk
0:00:20.2]} 1-0

[Event "Late-Titled-Tuesday-Blitz-February-06-2024"]
[Site "Chess.com"]
[Date "2024.02.06"]
[Round "4"]
[White "DraningWaterHi"]
[Black "ArtemDyachuk"]
[Result "1-0"]
[WhiteElo "2209"]
[BlackElo "2633"]
[TimeControl "180+1"]
[EndTime "14:38:45 PST"]
[Termination "DraningWaterHi won by checkmate"]

1. d4 {[%clk 0:03:00.9]} 1... d5 {[%clk 0:02:51.7]} 2. Bf4 {[%clk 0:02:57.9]}
2... Nf6 {[%clk 0:02:49.7]} 3. e3 {[%clk 0:02:55.6]} 3... c5 {[%clk 0:02:50.2]}
4. c3 {[%clk 0:02:55.7]} 4... Nc6 {[%clk 0:02:50.4]} 5. Nd2 {[%clk 0:02:47.5]}
5... e6 {[%clk 0:02:48.2]} 6. Ngf3 {[%clk 0:02:47.1]} 6... h6 {[%clk 0:02:48]}
7. h3 {[%clk 0:02:47.2]} 7... Bd6 {[%clk 0:02:47.9]} 8. Bd3 {[%clk 0:02:43.4]}
8... O-O {[%clk 0:02:13.9]} 9. O-O {[%clk 0:02:41.3]} 9... Re8 {[%clk
0:02:13.9]} 10. Bxd6 {[%clk 0:02:30.3]} 10... Qxd6 {[%clk 0:02:13.2]} 11. e4
{[%clk 0:02:30.8]} 11... cxd4 {[%clk 0:02:11.2]} 12. cxd4 {[%clk 0:02:26.6]}
12... dxe4 {[%clk 0:01:40.7]} 13. Nxe4 {[%clk 0:02:21.5]} 13... Nxe4 {[%clk
0:01:40]} 14. Bxe4 {[%clk 0:02:22.4]} 14... Bd7 {[%clk 0:01:40.7]} 15. Qb3
{[%clk 0:02:14.2]} 15... Nxd4 {[%clk 0:01:22.8]} 16. Qxb7 {[%clk 0:02:10]} 16...
Reb8 {[%clk 0:00:45.9]} 17. Qxa8 {[%clk 0:02:03]} 17... Rxa8 {[%clk 0:00:46.8]}
18. Bxa8 {[%clk 0:02:02.9]} 18... Ne2+ {[%clk 0:00:42.6]} 19. Kh1 {[%clk
0:02:01.5]} 19... Qb8 {[%clk 0:00:40.2]} 20. Be4 {[%clk 0:01:59.9]} 20... f5
{[%clk 0:00:38]} 21. Bd3 {[%clk 0:01:55.5]} 21... Nf4 {[%clk 0:00:37.7]} 22. Bc4
{[%clk 0:01:55.5]} 22... Bc6 {[%clk 0:00:37]} 23. Ne1 {[%clk 0:01:44.9]} 23...
Qxb2 {[%clk 0:00:29.3]} 24. Rd1 {[%clk 0:01:43.8]} 24... Qc2 {[%clk 0:00:22.2]}
25. Nxc2 {[%clk 0:01:42.6]} 25... Bxg2+ {[%clk 0:00:19.9]} 26. Kh2 {[%clk
0:01:41.1]} 26... Be4 {[%clk 0:00:16.2]} 27. Ne3 {[%clk 0:01:40.3]} 27... Kf7
{[%clk 0:00:13.3]} 28. f3 {[%clk 0:01:35.4]} 28... Bc6 {[%clk 0:00:09.7]} 29.
Nxf5 {[%clk 0:01:34.7]} 29... Kf6 {[%clk 0:00:09.4]} 30. Nd4 {[%clk 0:01:33.6]}
30... Ba4 {[%clk 0:00:09.9]} 31. Nxe6 {[%clk 0:01:32.5]} 31... Ng6 {[%clk
0:00:04.9]} 32. Nc5 {[%clk 0:01:30.2]} 32... Be8 {[%clk 0:00:03.4]} 33. Ne4+
{[%clk 0:01:29.8]} 33... Ke5 {[%clk 0:00:03.4]} 34. Rd8 {[%clk 0:01:29]} 34...
Bc6 {[%clk 0:00:02.4]} 35. Re1 {[%clk 0:01:27.5]} 35... Kf4 {[%clk 0:00:01.9]}
36. Rd6 {[%clk 0:01:26.5]} 36... Ne5 {[%clk 0:00:01.2]} 37. Nd2 {[%clk
0:01:20.9]} 37... Be8 {[%clk 0:00:02.1]} 38. Rxe5 {[%clk 0:01:20]} 38... Kxe5
{[%clk 0:00:02.1]} 39. Re6+ {[%clk 0:01:20.5]} 39... Kf4 {[%clk 0:00:03]} 40.
Rxe8 {[%clk 0:01:21.4]} 40... g5 {[%clk 0:00:03.4]} 41. Re4+ {[%clk 0:01:21.5]}
41... Kf5 {[%clk 0:00:04.3]} 42. Be6+ {[%clk 0:01:20.6]} 42... Kf6 {[%clk
0:00:04.8]} 43. Bg4 {[%clk 0:01:21.1]} 43... a5 {[%clk 0:00:04.7]} 44. Re6+
{[%clk 0:01:21.5]} 44... Kg7 {[%clk 0:00:04.1]} 45. Ra6 {[%clk 0:01:22.1]} 45...
h5 {[%clk 0:00:03.9]} 46. Bf5 {[%clk 0:01:22.4]} 46... h4 {[%clk 0:00:04.8]} 47.
Ne4 {[%clk 0:01:23.1]} 47... Kf7 {[%clk 0:00:05]} 48. Nxg5+ {[%clk 0:01:23.3]}
48... Ke7 {[%clk 0:00:05.9]} 49. Ne4 {[%clk 0:01:23.4]} 49... Kf7 {[%clk
0:00:06.1]} 50. Bg4 {[%clk 0:01:23.9]} 50... Ke7 {[%clk 0:00:06.2]} 51. f4
{[%clk 0:01:24.8]} 51... a4 {[%clk 0:00:06.2]} 52. f5 {[%clk 0:01:25.7]} 52...
a3 {[%clk 0:00:06.8]} 53. f6+ {[%clk 0:01:26.3]} 53... Kf7 {[%clk 0:00:07.7]}
54. Bh5+ {[%clk 0:01:26.6]} 54... Kg8 {[%clk 0:00:06.8]} 55. f7+ {[%clk
0:01:25.3]} 55... Kg7 {[%clk 0:00:06.9]} 56. Ng5 {[%clk 0:01:21.9]} 56... Kf8
{[%clk 0:00:03.1]} 57. Nh7+ {[%clk 0:01:21.8]} 57... Ke7 {[%clk 0:00:01.6]} 58.
f8=Q+ {[%clk 0:01:22.7]} 58... Kd7 {[%clk 0:00:02.5]} 59. Qd6+ {[%clk
0:01:22.2]} 59... Kc8 {[%clk 0:00:02.4]} 60. Ra8+ {[%clk 0:01:21.7]} 60... Kb7
{[%clk 0:00:03]} 61. Bf3# {[%clk 0:01:22.1]} 1-0

[Event "Late-Titled-Tuesday-Blitz-February-06-2024"]
[Site "Chess.com"]
[Date "2024.02.06"]
[Round "4"]
[White "ritanovikova"]
[Black "only_strong_moves"]
[Result "0-1"]
[WhiteElo "2222"]
[BlackElo "2650"]
[TimeControl "180+1"]
[EndTime "14:38:48 PST"]
[Termination "only_strong_moves won by resignation"]

1. e4 {[%clk 0:03:00]} 1... e5 {[%clk 0:03:00.5]} 2. Nf3 {[%clk 0:02:59.1]} 2...
Nc6 {[%clk 0:03:01.1]} 3. Bc4 {[%clk 0:02:58.6]} 3... Nf6 {[%clk 0:03:01.1]} 4.
d4 {[%clk 0:02:55.8]} 4... exd4 {[%clk 0:02:56.2]} 5. e5 {[%clk 0:02:51.7]} 5...
d5 {[%clk 0:02:56.6]} 6. Bb5 {[%clk 0:02:48.3]} 6... Nd7 {[%clk 0:02:54.9]} 7.
O-O {[%clk 0:02:37.2]} 7... Be7 {[%clk 0:02:49.9]} 8. Bxc6 {[%clk 0:02:28.6]}
8... bxc6 {[%clk 0:02:50.1]} 9. Qxd4 {[%clk 0:02:28.8]} 9... Bb7 {[%clk
0:02:50.7]} 10. e6 {[%clk 0:02:13.5]} 10... fxe6 {[%clk 0:02:36.9]} 11. Qxg7
{[%clk 0:02:10.3]} 11... Bf6 {[%clk 0:02:37.1]} 12. Qg4 {[%clk 0:02:01.9]} 12...
Qe7 {[%clk 0:02:37]} 13. Re1 {[%clk 0:01:50.4]} 13... e5 {[%clk 0:02:36.5]} 14.
Qh5+ {[%clk 0:01:35.9]} 14... Qf7 {[%clk 0:02:36]} 15. Qh3 {[%clk 0:01:24.5]}
15... e4 {[%clk 0:02:31.8]} 16. Ng5 {[%clk 0:01:13.6]} 16... Qe7 {[%clk
0:02:29]} 17. Ne6 {[%clk 0:01:09.8]} 17... Ne5 {[%clk 0:02:21.8]} 18. Be3 {[%clk
0:00:48.6]} 18... Bc8 {[%clk 0:02:20.8]} 19. Qh5+ {[%clk 0:00:45.9]} 19... Ng6
{[%clk 0:02:16.5]} 20. Nf4 {[%clk 0:00:41.8]} 20... Qf7 {[%clk 0:02:12.2]} 21.
Nxg6 {[%clk 0:00:28.1]} 21... hxg6 {[%clk 0:02:13.1]} 22. Qd1 {[%clk 0:00:23]}
22... Bxb2 {[%clk 0:02:13.3]} 23. Nd2 {[%clk 0:00:21.4]} 23... Be5 {[%clk
0:01:59.3]} 24. g3 {[%clk 0:00:20.9]} 24... Bf5 {[%clk 0:01:43.3]} 25. Rb1
{[%clk 0:00:19.1]} 25... O-O {[%clk 0:01:39.6]} 26. Bh6 {[%clk 0:00:16.3]} 26...
Bh3 {[%clk 0:01:31.3]} 27. Bxf8 {[%clk 0:00:12.6]} 27... Rxf8 {[%clk 0:01:32.2]}
28. Qe2 {[%clk 0:00:12.8]} 28... Bd4 {[%clk 0:01:32.8]} 29. Rf1 {[%clk
0:00:11.9]} 29... Bxf1 {[%clk 0:01:27.7]} 30. Rxf1 {[%clk 0:00:12.8]} 30... Qf5
{[%clk 0:01:24.4]} 31. Kg2 {[%clk 0:00:12.6]} 31... Bb6 {[%clk 0:01:21.7]} 32.
c3 {[%clk 0:00:12.1]} 32... Qf6 {[%clk 0:01:20.8]} 33. c4 {[%clk 0:00:09.3]}
33... Re8 {[%clk 0:01:08.5]} 34. cxd5 {[%clk 0:00:09.1]} 34... cxd5 {[%clk
0:01:09.4]} 35. Qb5 {[%clk 0:00:08.8]} 35... c6 {[%clk 0:01:07.5]} 36. Qe2
{[%clk 0:00:08.5]} 36... Rf8 {[%clk 0:01:04.5]} 37. h4 {[%clk 0:00:07.9]} 37...
Qe5 {[%clk 0:01:00.7]} 38. f3 {[%clk 0:00:07.7]} 38... Bc7 {[%clk 0:00:59.4]}
39. Qf2 {[%clk 0:00:05.7]} 39... e3 {[%clk 0:00:58.6]} 40. Qe1 {[%clk
0:00:04.6]} 40... exd2 {[%clk 0:00:58.7]} 41. Qxe5 {[%clk 0:00:04.9]} 41... Bxe5
{[%clk 0:00:59.6]} 42. Rd1 {[%clk 0:00:05.4]} 42... Bc3 {[%clk 0:01:00.2]} 43.
f4 {[%clk 0:00:05.5]} 43... Re8 {[%clk 0:01:00.6]} 44. Kf3 {[%clk 0:00:05.6]}
44... Re1 {[%clk 0:01:01.1]} 0-1

[Event "Late-Titled-Tuesday-Blitz-February-06-2024"]
[Site "Chess.com"]
[Date "2024.02.06"]
[Round "4"]
[White "LiemLe"]
[Black "kuli4ik"]
[Result "1-0"]
[WhiteElo "3037"]
[BlackElo "2859"]
[TimeControl "180+1"]
[EndTime "14:38:49 PST"]
[Termination "LiemLe won by resignation"]

1. Nf3 {[%clk 0:03:00.9]} 1... g6 {[%clk 0:02:42.8]} 2. d4 {[%clk 0:02:58.9]}
2... Bg7 {[%clk 0:02:43]} 3. e4 {[%clk 0:02:56.8]} 3... d6 {[%clk 0:02:43.3]} 4.
Nc3 {[%clk 0:02:55.2]} 4... a6 {[%clk 0:02:43.3]} 5. a4 {[%clk 0:02:53.8]} 5...
Nf6 {[%clk 0:02:41.8]} 6. h3 {[%clk 0:02:53.8]} 6... O-O {[%clk 0:02:41.1]} 7.
Be3 {[%clk 0:02:49]} 7... Nc6 {[%clk 0:02:41.2]} 8. d5 {[%clk 0:02:45.9]} 8...
Nb4 {[%clk 0:02:37.3]} 9. a5 {[%clk 0:02:22.2]} 9... e6 {[%clk 0:02:36.6]} 10.
Bc4 {[%clk 0:02:18]} 10... exd5 {[%clk 0:02:33.7]} 11. exd5 {[%clk 0:02:18.9]}
11... Re8 {[%clk 0:02:21.4]} 12. O-O {[%clk 0:02:17.7]} 12... c6 {[%clk
0:02:13.6]} 13. dxc6 {[%clk 0:01:50.1]} 13... bxc6 {[%clk 0:02:13.6]} 14. Na4
{[%clk 0:01:26.1]} 14... Rxe3 {[%clk 0:01:38]} 15. fxe3 {[%clk 0:01:24.8]} 15...
d5 {[%clk 0:01:38.3]} 16. Nb6 {[%clk 0:01:23.7]} 16... Rb8 {[%clk 0:01:21.9]}
17. c3 {[%clk 0:01:22.8]} 17... Qe7 {[%clk 0:01:06.1]} 18. cxb4 {[%clk
0:01:13.7]} 18... dxc4 {[%clk 0:01:01.9]} 19. Ra3 {[%clk 0:01:02.4]} 19... Nd5
{[%clk 0:00:46.2]} 20. Nd4 {[%clk 0:00:48.5]} 20... Nxb4 {[%clk 0:00:45.4]} 21.
Nxc4 {[%clk 0:00:46.7]} 21... c5 {[%clk 0:00:41.2]} 22. Nf3 {[%clk 0:00:43.1]}
22... Be6 {[%clk 0:00:40.7]} 23. Qe2 {[%clk 0:00:36.7]} 23... h6 {[%clk
0:00:32.5]} 24. Nb6 {[%clk 0:00:36]} 24... Rd8 {[%clk 0:00:26.7]} 25. e4 {[%clk
0:00:35]} 25... c4 {[%clk 0:00:22.5]} 26. Nxc4 {[%clk 0:00:27.3]} 26... Qc5+
{[%clk 0:00:21]} 27. Ne3 {[%clk 0:00:27.5]} 27... Nc6 {[%clk 0:00:13.9]} 28. Kh1
{[%clk 0:00:28]} 28... Nxa5 {[%clk 0:00:10]} 29. Nd5 {[%clk 0:00:20.6]} 29...
Kh7 {[%clk 0:00:03.9]} 30. Qxa6 {[%clk 0:00:17.1]} 30... Bxd5 {[%clk 0:00:04]}
31. Rxa5 {[%clk 0:00:16.7]} 31... Qc4 {[%clk 0:00:03.6]} 32. exd5 {[%clk
0:00:16.3]} 1-0

[Event "Late-Titled-Tuesday-Blitz-February-06-2024"]
[Site "Chess.com"]
[Date "2024.02.06"]
[Round "4"]
[White "MolecularChemist"]
[Black "DreamsAreFake"]
[Result "1-0"]
[WhiteElo "2956"]
[BlackElo "2723"]
[TimeControl "180+1"]
[EndTime "14:38:49 PST"]
[Termination "MolecularChemist won by resignation"]

1. Nf3 {[%clk 0:03:00.9]} 1... Nf6 {[%clk 0:02:57.6]} 2. e3 {[%clk 0:03:01.4]}
2... b6 {[%clk 0:02:54.4]} 3. c4 {[%clk 0:02:58.1]} 3... Bb7 {[%clk 0:02:54.1]}
4. Nc3 {[%clk 0:02:58.7]} 4... c6 {[%clk 0:02:53.6]} 5. b3 {[%clk 0:02:58.1]}
5... Na6 {[%clk 0:02:54.3]} 6. Bb2 {[%clk 0:02:58.2]} 6... Nc7 {[%clk
0:02:54.9]} 7. d4 {[%clk 0:02:57.2]} 7... g6 {[%clk 0:02:55.6]} 8. e4 {[%clk
0:02:56.4]} 8... d6 {[%clk 0:02:55.1]} 9. Bd3 {[%clk 0:02:56.2]} 9... Bg7 {[%clk
0:02:55.7]} 10. O-O {[%clk 0:02:56.9]} 10... Nd7 {[%clk 0:02:54.8]} 11. Re1
{[%clk 0:02:52.6]} 11... e5 {[%clk 0:02:49.1]} 12. Ne2 {[%clk 0:02:50.7]} 12...
O-O {[%clk 0:02:47.9]} 13. Qc2 {[%clk 0:02:50.3]} 13... Ne6 {[%clk 0:02:46.4]}
14. Rad1 {[%clk 0:02:49.6]} 14... Qe7 {[%clk 0:02:44]} 15. d5 {[%clk 0:02:46.5]}
15... cxd5 {[%clk 0:02:43.6]} 16. exd5 {[%clk 0:02:44.6]} 16... Nec5 {[%clk
0:02:42.9]} 17. Ned4 {[%clk 0:02:38.5]} 17... f5 {[%clk 0:02:30.8]} 18. Nc6
{[%clk 0:02:17.5]} 18... Bxc6 {[%clk 0:02:22]} 19. dxc6 {[%clk 0:02:18.4]} 19...
Nb8 {[%clk 0:02:22.7]} 20. b4 {[%clk 0:02:11.2]} 20... Nxd3 {[%clk 0:02:21.2]}
21. Qxd3 {[%clk 0:02:10.4]} 21... e4 {[%clk 0:01:53.1]} 22. Qd5+ {[%clk
0:01:49.1]} 22... Kh8 {[%clk 0:01:43]} 23. Bxg7+ {[%clk 0:01:41.8]} 23... Kxg7
{[%clk 0:01:38.8]} 24. Nd4 {[%clk 0:01:33.5]} 24... Re8 {[%clk 0:01:35.2]} 25.
b5 {[%clk 0:01:20.5]} 25... a6 {[%clk 0:01:24.1]} 26. c7 {[%clk 0:01:09.9]}
26... Nd7 {[%clk 0:01:23.1]} 27. Nc6 {[%clk 0:01:10.3]} 27... Qf6 {[%clk
0:01:06]} 28. Nb8 {[%clk 0:00:57.7]} 28... Raxb8 {[%clk 0:01:00.3]} 29. cxb8=Q
{[%clk 0:00:56.9]} 29... Rxb8 {[%clk 0:00:58.9]} 30. bxa6 {[%clk 0:00:56]} 30...
Qf8 {[%clk 0:00:47]} 31. a7 {[%clk 0:00:51.3]} 31... Ra8 {[%clk 0:00:46.4]} 32.
Qb7 {[%clk 0:00:51.9]} 32... Qc8 {[%clk 0:00:43]} 33. Qxc8 {[%clk 0:00:51.8]}
33... Rxc8 {[%clk 0:00:43.3]} 34. Rxd6 {[%clk 0:00:52.5]} 34... Nc5 {[%clk
0:00:43.5]} 35. Rxb6 {[%clk 0:00:49.4]} 35... Ra8 {[%clk 0:00:43.3]} 36. Rb5
{[%clk 0:00:48.4]} 36... Nd3 {[%clk 0:00:43.1]} 37. Rb7+ {[%clk 0:00:49.1]}
37... Kf6 {[%clk 0:00:43.1]} 38. Reb1 {[%clk 0:00:49.3]} 38... Ne5 {[%clk
0:00:41.1]} 39. R1b6+ {[%clk 0:00:48.4]} 39... Kg5 {[%clk 0:00:41.6]} 40. Ra6
{[%clk 0:00:48.5]} 40... Rd8 {[%clk 0:00:41.8]} 41. Rb1 {[%clk 0:00:41.7]} 41...
Rd2 {[%clk 0:00:35.4]} 42. a8=Q {[%clk 0:00:39.3]} 42... Nd3 {[%clk 0:00:36.3]}
43. Qd8+ {[%clk 0:00:38.9]} 43... Kh5 {[%clk 0:00:36.6]} 44. Qd4 {[%clk
0:00:36.3]} 44... Re2 {[%clk 0:00:33.8]} 45. Ra3 {[%clk 0:00:31.5]} 45... Nf4
{[%clk 0:00:33.2]} 46. Qd1 {[%clk 0:00:28.8]} 46... Kg5 {[%clk 0:00:30.9]} 47.
Rg3+ {[%clk 0:00:29]} 47... Kh4 {[%clk 0:00:30]} 48. Re3 {[%clk 0:00:27.8]}
48... Rb2 {[%clk 0:00:29.8]} 49. Rxb2 {[%clk 0:00:27]} 1-0

[Event "Late-Titled-Tuesday-Blitz-February-06-2024"]
[Site "Chess.com"]
[Date "2024.02.06"]
[Round "4"]
[White "Reality-Stone"]
[Black "LyonBeast"]
[Result "0-1"]
[WhiteElo "2627"]
[BlackElo "3146"]
[TimeControl "180+1"]
[EndTime "14:38:49 PST"]
[Termination "LyonBeast won by resignation"]

1. d4 {[%clk 0:03:00.9]} 1... Nf6 {[%clk 0:02:59.2]} 2. Nf3 {[%clk 0:02:59.1]}
2... d5 {[%clk 0:02:59]} 3. Bf4 {[%clk 0:02:54.4]} 3... c5 {[%clk 0:02:57.5]} 4.
e3 {[%clk 0:02:51.3]} 4... Nc6 {[%clk 0:02:58.2]} 5. Nbd2 {[%clk 0:02:51]} 5...
Nh5 {[%clk 0:02:56.9]} 6. Bg5 {[%clk 0:02:40.6]} 6... h6 {[%clk 0:02:55.3]} 7.
Bh4 {[%clk 0:02:38.7]} 7... g5 {[%clk 0:02:55.4]} 8. Ne5 {[%clk 0:02:36.8]} 8...
Nxe5 {[%clk 0:02:33.9]} 9. Qxh5 {[%clk 0:02:18.3]} 9... Bg4 {[%clk 0:02:33.1]}
10. Bb5+ {[%clk 0:02:11.8]} 10... Qd7 {[%clk 0:02:32.6]} 11. Bxd7+ {[%clk
0:02:05.7]} 11... Kxd7 {[%clk 0:02:33.5]} 12. Qxg4+ {[%clk 0:01:54.3]} 12...
Nxg4 {[%clk 0:02:34]} 13. Bg3 {[%clk 0:01:54.7]} 13... Rc8 {[%clk 0:02:29]} 14.
c3 {[%clk 0:01:51.2]} 14... Bg7 {[%clk 0:02:27.6]} 15. h3 {[%clk 0:01:49.7]}
15... Nf6 {[%clk 0:02:27.8]} 16. dxc5 {[%clk 0:01:46.8]} 16... Rxc5 {[%clk
0:02:26.6]} 17. Be5 {[%clk 0:01:45.5]} 17... Ra8 {[%clk 0:02:08.4]} 18. O-O-O
{[%clk 0:01:44.7]} 18... Ke6 {[%clk 0:01:56.4]} 19. Nb3 {[%clk 0:01:37.4]} 19...
Rcc8 {[%clk 0:01:54.4]} 20. f4 {[%clk 0:01:35]} 20... Ne8 {[%clk 0:01:44.2]} 21.
Nd4+ {[%clk 0:01:31.5]} 21... Kd7 {[%clk 0:01:44.2]} 22. Nf5 {[%clk 0:01:26.7]}
22... Bxe5 {[%clk 0:01:39.4]} 23. fxe5 {[%clk 0:01:27.4]} 23... Ke6 {[%clk
0:01:30.1]} 24. Nxh6 {[%clk 0:01:20.8]} 24... f6 {[%clk 0:01:30.2]} 25. exf6
{[%clk 0:01:18.7]} 25... Nxf6 {[%clk 0:01:31.1]} 26. Ng4 {[%clk 0:01:16.4]}
26... Ne4 {[%clk 0:01:24.5]} 27. Rhf1 {[%clk 0:01:14.9]} 27... Rf8 {[%clk
0:01:24.9]} 28. Kc2 {[%clk 0:01:12.7]} 28... a5 {[%clk 0:01:19]} 29. Kd3 {[%clk
0:01:08.9]} 29... Kd6 {[%clk 0:01:15.5]} 30. Nh2 {[%clk 0:01:05.8]} 30... Nf2+
{[%clk 0:01:14.7]} 31. Ke2 {[%clk 0:00:59.2]} 31... Nxd1 {[%clk 0:01:15.4]} 32.
Rxd1 {[%clk 0:00:59.7]} 32... e6 {[%clk 0:01:12.1]} 33. Nf3 {[%clk 0:00:58.7]}
33... Rg8 {[%clk 0:01:12.4]} 34. g4 {[%clk 0:00:49]} 34... Raf8 {[%clk
0:01:11.4]} 35. e4 {[%clk 0:00:45]} 35... Rf4 {[%clk 0:01:10.4]} 36. exd5 {[%clk
0:00:38.8]} 36... exd5 {[%clk 0:01:11.3]} 37. Rd3 {[%clk 0:00:36.3]} 37... b5
{[%clk 0:01:03.8]} 38. Nd4 {[%clk 0:00:35]} 38... b4 {[%clk 0:01:02.2]} 39. Nf5+
{[%clk 0:00:34.2]} 39... Kc5 {[%clk 0:00:58.2]} 40. cxb4+ {[%clk 0:00:33.6]}
40... axb4 {[%clk 0:00:59.1]} 41. Kd1 {[%clk 0:00:24.6]} 41... Re8 {[%clk
0:00:55.9]} 42. Kc2 {[%clk 0:00:24.5]} 42... Re2+ {[%clk 0:00:54.1]} 43. Kb3
{[%clk 0:00:24.9]} 43... Rff2 {[%clk 0:00:53.1]} 44. Ka4 {[%clk 0:00:18.3]}
44... Rxb2 {[%clk 0:00:53]} 45. a3 {[%clk 0:00:17.7]} 45... Ra2 {[%clk
0:00:51.5]} 46. Ne3 {[%clk 0:00:06.6]} 46... Rxa3+ {[%clk 0:00:51.3]} 0-1

[Event "Late-Titled-Tuesday-Blitz-February-06-2024"]
[Site "Chess.com"]
[Date "2024.02.06"]
[Round "4"]
[White "lachesisQ"]
[Black "djano"]
[Result "0-1"]
[WhiteElo "3058"]
[BlackElo "2636"]
[TimeControl "180+1"]
[EndTime "14:38:49 PST"]
[Termination "djano won by resignation"]

1. e4 {[%clk 0:02:57.8]} 1... c5 {[%clk 0:02:58.3]} 2. Nf3 {[%clk 0:02:57]} 2...
Nc6 {[%clk 0:02:55.7]} 3. Bb5 {[%clk 0:02:54.2]} 3... e5 {[%clk 0:02:55.2]} 4.
O-O {[%clk 0:02:52]} 4... Nge7 {[%clk 0:02:54.9]} 5. c3 {[%clk 0:02:48.1]} 5...
g6 {[%clk 0:02:50.9]} 6. d4 {[%clk 0:02:45.6]} 6... cxd4 {[%clk 0:02:51.8]} 7.
cxd4 {[%clk 0:02:45]} 7... exd4 {[%clk 0:02:52.7]} 8. Nxd4 {[%clk 0:02:30.6]}
8... Bg7 {[%clk 0:02:51.3]} 9. Be3 {[%clk 0:02:30.9]} 9... O-O {[%clk
0:02:49.2]} 10. Nc3 {[%clk 0:02:30.9]} 10... d5 {[%clk 0:02:48.6]} 11. exd5
{[%clk 0:01:53.6]} 11... Nxd5 {[%clk 0:02:49.5]} 12. Nxc6 {[%clk 0:01:47.1]}
12... bxc6 {[%clk 0:02:37.1]} 13. Nxd5 {[%clk 0:01:42.1]} 13... cxb5 {[%clk
0:02:32]} 14. Bc5 {[%clk 0:01:34.5]} 14... Re8 {[%clk 0:02:27.7]} 15. Ne7+
{[%clk 0:01:18]} 15... Kh8 {[%clk 0:02:25.7]} 16. Qf3 {[%clk 0:01:16.6]} 16...
Be6 {[%clk 0:02:17.6]} 17. Rad1 {[%clk 0:01:16.3]} 17... Qc7 {[%clk 0:02:12.7]}
18. b4 {[%clk 0:01:16.4]} 18... a5 {[%clk 0:02:06.5]} 19. a3 {[%clk 0:01:13.8]}
19... axb4 {[%clk 0:02:05.9]} 20. axb4 {[%clk 0:01:14.7]} 20... h5 {[%clk
0:02:02.6]} 21. h3 {[%clk 0:01:14.2]} 21... Ra2 {[%clk 0:01:49.6]} 22. Nc6
{[%clk 0:01:02.7]} 22... Bc4 {[%clk 0:01:41.5]} 23. Rfe1 {[%clk 0:01:02.9]}
23... Ree2 {[%clk 0:01:41.4]} 24. Be3 {[%clk 0:00:35.8]} 24... Rxe1+ {[%clk
0:01:33.7]} 25. Rxe1 {[%clk 0:00:36.7]} 25... Kh7 {[%clk 0:01:18.1]} 26. Bd4
{[%clk 0:00:35.6]} 26... Bxd4 {[%clk 0:01:09.4]} 27. Nxd4 {[%clk 0:00:36.5]}
27... Qd6 {[%clk 0:01:07.4]} 28. Qc3 {[%clk 0:00:26.7]} 28... Qf6 {[%clk
0:01:02.9]} 29. Qe3 {[%clk 0:00:26.5]} 29... Qd6 {[%clk 0:01:00]} 30. Nf3 {[%clk
0:00:26.5]} 30... Kg7 {[%clk 0:00:51.8]} 31. Ng5 {[%clk 0:00:18.7]} 31... Qf6
{[%clk 0:00:39.4]} 32. Ne4 {[%clk 0:00:18.4]} 32... Qe5 {[%clk 0:00:38.1]} 33.
f4 {[%clk 0:00:11.3]} 33... Qb2 {[%clk 0:00:36.1]} 34. Qg3 {[%clk 0:00:11.3]}
34... Qd4+ {[%clk 0:00:34.5]} 35. Kh2 {[%clk 0:00:10.2]} 35... Bd5 {[%clk
0:00:34.8]} 36. Qc3 {[%clk 0:00:08.7]} 36... Qxc3 {[%clk 0:00:34.1]} 37. Nxc3
{[%clk 0:00:09.6]} 37... Rxg2+ {[%clk 0:00:32.9]} 38. Kh1 {[%clk 0:00:08.4]}
38... Re2+ {[%clk 0:00:33]} 39. Nxd5 {[%clk 0:00:08]} 39... Rxe1+ {[%clk
0:00:33.5]} 40. Kg2 {[%clk 0:00:08.9]} 40... Rb1 {[%clk 0:00:32.1]} 41. Kf3
{[%clk 0:00:09.1]} 41... Rb3+ {[%clk 0:00:32.2]} 0-1